bitfinex-derivatives/quotes_BNBF0:USTF0_20250220
["timestamp","ask_amount","ask_price","bid_price","bid_amount"]
[1740069691097,3.07678173,649.55,648.78,1.13583469]
[1740069691393,3.07678173,649.54,648.84,1.13583469]
[1740069691598,3.07707283,649.53,648.84,1.13583469]
[1740069691800,2.2340174,649.56,648.84,1.13583469]
[1740069691997,3.077109,649.55,648.84,1.13583469]
[1740069692194,3.077109,649.54,648.84,1.13583469]
[1740069692399,3.077109,649.53,648.84,1.13583469]
[1740069692600,3.077109,649.52,648.84,1.13583469]
[1740069692796,3.0772124,649.51,648.84,1.13583469]
[1740069693003,2.2340174,649.54,648.84,1.13583469]
[1740069693201,3.07720928,649.53,648.84,1.13583469]
[1740069693401,3.07720928,649.52,648.84,1.13583469]
[1740069693697,2.2340174,649.54,648.8,1.13583469]
[1740069693902,3.07708318,649.53,648.8,1.13583469]
[1740069694097,3.07708318,649.52,648.8,1.13583469]
[1740069694298,2.2340174,649.53,648.8,1.13583469]
[1740069694497,3.07700173,649.52,648.8,1.13583469]
[1740069694703,3.07700173,649.51,648.8,1.13583469]
[1740069694902,3.07700173,649.5,648.8,1.13583469]
[1740069695105,3.07700173,649.49,648.8,1.13583469]
[1740069695299,2.2340174,649.53,648.8,1.13583469]
[1740069695498,3.07696358,649.52,648.8,1.13583469]
[1740069695700,3.07696358,649.51,648.8,1.13583469]
[1740069695901,0.637,649.72,648.8,1.13583469]
[1740069695902,5.31098098,649.5,648.96,1.13583469]
[1740069696100,3.07696358,649.49,648.96,1.13583469]
[1740069696298,3.07684574,649.48,648.96,1.13583469]
[1740069696498,3.0768855,649.47,648.96,1.13583469]
[1740069696703,2.2340174,649.5,648.96,1.13583469]
[1740069697098,3.07679901,649.49,648.96,1.13583469]
[1740069697299,2.2340174,649.5,648.96,1.13583469]
[1740069697501,3.0766959,649.49,648.96,1.13583469]
[1740069697805,2.2340174,649.49,648.96,1.13583469]
[1740069699308,2.2340174,649.49,648.93,1.13583469]
[1740069699507,3.07678136,649.48,648.93,1.13583469]
[1740069699708,3.07680324,649.47,648.93,1.13583469]
[1740069699901,0.637,649.72,648.93,1.13583469]
[1740069700100,2.23441807,649.47,648.93,1.13583469]
[1740069701000,2.23441807,649.47,648.91,1.13583469]
[1740069702006,0.637,649.72,648.91,1.13583469]
[1740069702210,3.07714697,649.71,648.91,1.13583469]
[1740069702408,3.07714697,649.7,648.91,1.13583469]
[1740069702610,3.07714697,649.69,648.73,1.13583469]
[1740069702809,3.07714697,649.68,648.73,1.13583469]
[1740069703005,3.07714697,649.67,648.73,1.13583469]
[1740069703206,3.07714697,649.66,648.73,1.13583469]
[1740069703410,3.07714697,649.65,648.73,1.13583469]
[1740069703612,3.07714697,649.64,648.73,1.13583469]
[1740069703807,3.07714697,649.63,648.73,1.13583469]
[1740069704112,3.07714697,649.62,648.73,1.13583469]
[1740069704309,3.07714697,649.61,648.73,1.13583469]
[1740069704513,3.07714697,649.6,648.73,1.13583469]
[1740069704712,3.07714697,649.59,648.73,1.13583469]
[1740069704909,3.07714697,649.58,648.73,1.13583469]
[1740069705114,2.23501345,649.62,648.44,1.60658021]
[1740069705115,3.07714697,649.57,648.71,1.13583469]
[1740069705411,3.07714697,649.56,648.71,1.13583469]
[1740069705614,3.07714697,649.55,648.71,1.13583469]
[1740069705916,3.07714697,649.54,648.71,1.13583469]
[1740069706208,3.07714697,649.53,648.71,1.13583469]
[1740069706413,3.07714697,649.52,648.71,1.13583469]
[1740069706611,3.07714697,649.51,648.71,1.13583469]
[1740069706812,3.07714697,649.5,648.71,1.13583469]
[1740069707009,2.23501345,649.54,648.73,1.13583469]
[1740069707212,3.07978048,649.53,648.73,1.13583469]
[1740069707427,3.07978048,649.52,648.73,1.13583469]
[1740069707613,3.07978048,649.51,648.73,1.13583469]
[1740069707814,3.07978048,649.5,648.73,1.13583469]
[1740069708014,3.07978048,649.49,648.73,1.13583469]
[1740069708215,2.23501345,649.52,648.73,1.13583469]
[1740069708410,3.07996868,649.51,648.73,1.13583469]
[1740069708609,3.07996868,649.5,648.73,1.13583469]
[1740069708918,2.23501345,649.52,648.73,1.13583469]
[1740069709118,3.07998204,649.51,648.77,1.13583469]
[1740069709411,3.07994858,649.5,648.77,1.13583469]
[1740069709714,2.23501345,649.51,648.77,1.13583469]
[1740069711119,1.271,649.75,648.77,1.13583469]
[1740069711319,3.07990177,649.74,649.01,1.13583469]
[1740069711514,5.31652664,649.73,649.01,1.13583469]
[1740069711712,3.07990177,649.72,649.01,1.13583469]
[1740069711916,3.07990177,649.71,649.01,1.13583469]
[1740069712112,3.07990177,649.7,649.01,1.13583469]
[1740069712317,3.07990177,649.69,649.01,1.13583469]
[1740069712517,3.07990177,649.68,649.01,1.13583469]
[1740069712720,3.07990177,649.67,649.01,1.13583469]
[1740069712915,3.07990177,649.66,649.01,1.13583469]
[1740069713118,3.07990177,649.65,649.01,1.13583469]
[1740069713322,3.07990177,649.64,649.01,1.13583469]
[1740069713516,3.07990177,649.63,649.01,1.13583469]
[1740069713724,3.07990177,649.62,649.07,1.13583469]
[1740069714021,3.07990177,649.61,649.07,1.13583469]
[1740069714217,3.07990177,649.6,649.07,1.13583469]
[1740069714419,3.07990177,649.59,649.07,1.13583469]
[1740069714617,3.07990177,649.58,649.07,1.13583469]
[1740069714824,2.23662487,649.65,649.07,1.13583469]
[1740069714825,3.07990177,649.57,649.07,1.13583469]
[1740069715021,3.07990177,649.56,649.07,1.13583469]
[1740069715223,2.23662487,649.65,649.07,1.13583469]
[1740069715521,3.08025401,649.64,649.07,1.13583469]
[1740069715717,3.08025401,649.63,649.07,1.13583469]
[1740069715921,3.08025401,649.62,649.07,1.13583469]
[1740069716121,3.08025401,649.61,649.07,1.13583469]
[1740069716322,3.08025401,649.6,649.03,1.13583469]
[1740069716517,3.08025401,649.59,649.03,1.13583469]
[1740069716719,3.08025401,649.58,649.03,1.13583469]
[1740069716919,2.23662487,649.64,649.03,1.13583469]
[1740069717120,3.0802277,649.63,649.03,1.13583469]
[1740069717318,3.0802277,649.62,649.03,1.13583469]
[1740069717523,3.0802277,649.61,649.03,1.13583469]
[1740069717724,3.0802277,649.6,649.03,1.13583469]
[1740069717921,2.23662487,649.61,649.03,1.13583469]
[1740069718325,3.08019437,649.6,648.83,1.13583469]
[1740069718523,2.23662487,649.61,648.83,1.13583469]
[1740069718829,3.08018444,649.6,648.83,1.13583469]
[1740069719036,1.271,649.75,648.83,1.13583469]
[1740069719223,3.08018529,649.74,648.83,1.13583469]
[1740069719420,3.08018529,649.73,648.83,1.13583469]
[1740069719626,3.08018529,649.72,648.83,1.13583469]
[1740069719826,3.08018529,649.71,648.83,1.13583469]
[1740069720021,3.08018529,649.7,648.83,1.13583469]
[1740069720221,3.08018529,649.69,648.83,1.13583469]
[1740069720427,3.08018529,649.68,648.85,1.13583469]
[1740069720622,3.08018529,649.67,648.85,1.13583469]
[1740069720827,3.08018529,649.66,648.85,1.13583469]
[1740069721027,3.08018529,649.65,648.85,1.13583469]
[1740069721227,5.31693562,649.64,648.85,1.13583469]
[1740069721427,3.08018529,649.63,648.85,1.13583469]
[1740069721627,3.08018529,649.62,648.85,1.13583469]
[1740069721828,3.08018529,649.61,648.85,1.13583469]
[1740069722026,3.08018529,649.6,648.85,1.13583469]
[1740069722228,5.31693562,649.59,648.85,1.13583469]
[1740069722429,2.23675033,649.59,648.85,1.13583469]
[1740069722625,2.23675033,649.59,648.83,1.13583469]
[1740069723025,3.08059635,649.58,648.83,1.13583469]
[1740069723227,3.08059635,649.57,648.83,1.13583469]
[1740069723426,3.08059635,649.56,648.83,1.13583469]
[1740069723626,3.08059635,649.55,648.83,1.13583469]
[1740069723831,2.23675033,649.59,648.83,1.13583469]
[1740069724030,5.31752537,649.58,648.83,1.13583469]
[1740069724329,3.08077504,649.57,648.83,1.13583469]
[1740069724631,3.08077504,649.56,648.83,1.13583469]
[1740069724830,3.08077504,649.55,648.83,1.13583469]
[1740069725030,3.08077504,649.54,648.83,1.13583469]
[1740069725333,2.23675033,649.54,649.05,1.13583469]
[1740069726830,1.271,649.75,649.05,1.13583469]
[1740069727127,3.08103789,649.74,649.05,1.13583469]
[1740069727433,5.31842594,649.73,649.05,1.13583469]
[1740069727629,3.08103789,649.72,649.05,1.13583469]
[1740069727829,3.08103789,649.71,648.97,1.13583469]
[1740069728032,3.08103789,649.7,648.97,1.13583469]
[1740069728327,3.08103789,649.69,648.97,1.13583469]
[1740069728535,3.08103789,649.68,648.97,1.13583469]
[1740069728734,3.08103789,649.67,648.97,1.13583469]
[1740069728935,3.08103789,649.66,648.97,1.13583469]
[1740069729134,3.08103789,649.65,648.97,1.13583469]
[1740069729333,3.08103789,649.64,648.97,1.13583469]
[1740069729635,3.08103789,649.63,648.97,1.13583469]
[1740069729929,3.08103789,649.62,648.97,1.13583469]
[1740069730133,2.23738805,649.66,649.04,1.13583469]
[1740069730134,3.08103789,649.61,649.04,1.13583469]
[1740069730333,3.08103789,649.6,649.04,1.13583469]
[1740069730534,2.23738805,649.66,649.04,1.13583469]
[1740069730731,3.08082563,649.65,649.04,1.13583469]
[1740069730935,3.08082563,649.64,649.04,1.13583469]
[1740069731133,3.08082563,649.63,649.04,1.13583469]
[1740069731334,3.08082563,649.62,649.04,1.13583469]
[1740069731530,2.23738805,649.65,649.04,1.13583469]
[1740069731730,3.08061123,649.64,649.04,1.13583469]
[1740069732035,3.08061123,649.63,649.04,1.13583469]
[1740069732234,2.23738805,649.65,649.04,1.13583469]
[1740069733031,0.637,649.8,649.04,1.13583469]
[1740069733232,3.08013604,649.79,648.8,1.13583469]
[1740069733535,3.08013604,649.78,648.8,1.13583469]
[1740069733736,3.08013604,649.77,648.8,1.13583469]
[1740069733937,3.08013604,649.76,648.8,1.13583469]
[1740069734235,3.08013604,649.75,648.8,1.13583469]
[1740069734436,3.08013604,649.74,648.8,1.13583469]
[1740069734636,3.08013604,649.73,648.8,1.13583469]
[1740069734938,2.23637023,649.78,648.8,1.13583469]
[1740069735131,3.07926253,649.77,648.8,1.13583469]
[1740069735336,3.07926253,649.76,648.8,1.13583469]
[1740069735536,3.07926253,649.75,648.8,1.13583469]
[1740069735738,2.23637023,649.76,648.8,1.13583469]
[1740069735938,3.07860122,649.75,648.8,1.13583469]
[1740069736138,2.23637023,649.76,648.8,1.13583469]
[1740069736338,3.07882462,649.75,648.8,1.13583469]
[1740069736535,2.23637023,649.76,648.8,1.13583469]
[1740069736740,3.07803808,649.75,648.61,1.13583469]
[1740069737039,2.23637023,649.75,648.61,1.13583469]
[1740069738639,2.23637023,649.75,648.61,1.44418639]
[1740069739142,0.637,649.8,648.92,1.13583469]
[1740069739441,3.07622367,649.79,648.92,1.13583469]
[1740069739640,3.07622367,649.78,648.92,1.13583469]
[1740069739842,3.07622367,649.77,648.92,1.13583469]
[1740069740040,2.23316717,649.77,648.92,1.13583469]
[1740069741838,3.0744781,649.76,648.92,1.13583469]
[1740069742041,3.73,649.92,648.92,1.13583469]
[1740069742242,3.07443989,649.91,648.86,1.13583469]
[1740069742440,3.07443989,649.9,648.86,1.13583469]
[1740069742641,3.07443989,649.89,648.86,1.13583469]
[1740069742838,3.07443989,649.88,648.86,1.13583469]
[1740069743142,3.07443989,649.87,648.86,1.13583469]
[1740069743338,3.07443989,649.86,648.86,1.13583469]
[1740069743545,3.07443989,649.85,648.86,1.13583469]
[1740069743840,3.07443989,649.84,648.86,1.13583469]
[1740069744043,3.07443989,649.83,648.86,1.13583469]
[1740069744344,3.07443989,649.82,648.86,1.13583469]
[1740069744540,3.07443989,649.81,648.86,1.13583469]
[1740069744740,3.07443989,649.8,648.86,1.13583469]
[1740069744945,3.07443989,649.79,648.61,0.3083517]
[1740069745140,3.07443989,649.78,648.61,0.3083517]
[1740069745340,3.07443989,649.77,648.61,0.3083517]
[1740069745540,3.07443989,649.76,648.61,0.3083517]
[1740069745740,3.07443989,649.75,648.61,0.3083517]
[1740069745946,3.07443989,649.74,648.61,0.3083517]
[1740069746140,3.07443989,649.73,648.61,0.3083517]
[1740069746346,3.07443989,649.72,648.61,0.3083517]
[1740069746644,3.07443989,649.71,648.61,0.3083517]
[1740069746845,3.07443989,649.7,648.61,0.3083517]
[1740069747047,3.07443989,649.69,648.61,0.3083517]
[1740069747249,3.07443989,649.68,648.61,0.3083517]
[1740069747449,3.07443989,649.67,648.61,0.3083517]
[1740069747650,3.07443989,649.66,648.65,1.13583469]
[1740069747846,3.07443989,649.65,648.65,1.13583469]
[1740069748047,3.07443989,649.64,648.65,1.13583469]
[1740069748347,3.0743374,649.63,648.65,1.13583469]
[1740069748543,2.23234285,649.72,648.65,1.13583469]
[1740069748748,1.436,649.69,648.65,1.13583469]
[1740069748949,3.07444298,649.68,648.65,1.13583469]
[1740069749149,3.07444298,649.67,648.65,1.13583469]
[1740069749350,3.07444298,649.66,648.65,1.13583469]
[1740069749550,3.07444298,649.65,648.65,1.13583469]
[1740069749752,3.07444298,649.64,648.65,1.13583469]
[1740069750053,3.07444298,649.63,648.65,1.13583469]
[1740069750249,2.23242248,649.67,648.65,1.13583469]
[1740069750448,1.436,649.69,648.65,1.13583469]
[1740069750845,3.07436814,649.68,648.93,1.13583469]
[1740069751048,3.07436814,649.67,648.93,1.13583469]
[1740069751251,3.07436814,649.66,648.93,1.13583469]
[1740069751454,3.07436814,649.65,648.93,1.13583469]
[1740069751654,3.07436814,649.64,648.93,1.13583469]
[1740069751953,3.07436814,649.63,648.93,1.13583469]
[1740069752255,3.07445104,649.62,648.93,1.13583469]
[1740069752457,1.436,649.69,648.93,1.13583469]
[1740069752657,3.07456009,649.68,648.93,1.13583469]
[1740069752857,3.07456009,649.67,648.93,1.13583469]
[1740069753057,3.07456009,649.66,649.0,1.13583469]
[1740069753258,3.07456009,649.65,649.0,1.13583469]
[1740069753459,3.07456009,649.64,649.0,1.13583469]
[1740069753658,3.07456009,649.63,649.0,1.13583469]
[1740069753859,3.07456009,649.62,649.0,1.13583469]
[1740069754059,3.07466984,649.61,649.0,1.13583469]
[1740069754261,2.2326084,649.66,649.0,1.13583469]
[1740069754460,3.07465208,649.65,649.0,1.13583469]
[1740069754655,3.07465208,649.64,649.0,1.13583469]
[1740069754859,2.2326084,649.66,648.99,1.13583469]
[1740069754860,3.07465208,649.63,648.99,1.13583469]
[1740069755064,3.07465208,649.62,648.99,1.13583469]
[1740069755357,3.07465208,649.61,648.99,1.13583469]
[1740069755561,3.07465208,649.6,648.99,1.13583469]
[1740069755761,3.07465208,649.59,648.99,1.13583469]
[1740069756059,3.07465208,649.58,648.99,1.13583469]
[1740069756254,3.07465208,649.57,648.99,1.13583469]
[1740069756456,3.07465208,649.56,648.99,1.13583469]
[1740069756656,3.07465208,649.55,648.99,1.13583469]
[1740069756857,3.07465208,649.54,648.99,1.13583469]
[1740069757061,3.07465208,649.53,648.99,1.13583469]
[1740069757261,3.07465208,649.52,648.99,1.13583469]
[1740069757461,3.07465208,649.51,648.99,1.13583469]
[1740069757662,3.07465208,649.5,648.63,1.13583469]
[1740069757856,3.07465208,649.49,648.63,1.13583469]
[1740069758062,3.07465208,649.48,648.63,1.13583469]
[1740069758262,3.07465208,649.47,648.63,1.13583469]
[1740069758462,3.07465208,649.46,648.63,1.13583469]
[1740069758663,3.07465208,649.45,648.63,1.13583469]
[1740069758863,3.07482161,649.44,648.63,1.13583469]
[1740069759058,3.07482161,649.43,648.63,1.13583469]
[1740069759263,2.2326084,649.45,648.63,1.13583469]
[1740069759558,3.07463658,649.44,648.63,1.13583469]
[1740069759864,2.2326084,649.45,648.63,1.13583469]
[1740069760065,3.07460601,649.44,648.63,1.13583469]
[1740069760265,3.07472507,649.43,648.63,1.13583469]
[1740069760466,3.07451579,649.42,648.63,1.13583469]
[1740069760669,2.053,649.64,648.63,1.13583469]
[1740069760966,3.07446716,649.63,648.63,1.13583469]
[1740069761166,3.07446716,649.62,648.63,1.13583469]
[1740069761366,3.07446716,649.61,648.63,1.13583469]
[1740069761566,3.07446716,649.6,648.63,1.13583469]
[1740069761765,3.07446716,649.59,648.63,1.13583469]
[1740069762066,3.07446716,649.58,648.63,1.13583469]
[1740069762266,3.07446716,649.57,648.86,1.13583469]
[1740069762566,5.30713669,649.56,648.86,1.13583469]
[1740069762765,3.07446716,649.55,648.86,1.13583469]
[1740069762964,3.07446716,649.54,648.86,1.13583469]
[1740069763161,3.07446716,649.53,648.86,1.13583469]
[1740069763459,3.07446716,649.52,648.86,1.13583469]
[1740069763664,3.07446716,649.51,648.86,1.13583469]
[1740069763866,3.07446716,649.5,648.86,1.13583469]
[1740069764067,3.07446716,649.49,648.86,1.13583469]
[1740069764366,3.07417531,649.48,648.86,1.13583469]
[1740069764565,2.23266953,649.56,648.86,1.13583469]
[1740069764766,3.07413861,649.55,648.86,1.13583469]
[1740069765062,5.30664272,649.54,648.9,1.13583469]
[1740069765366,3.07413861,649.53,648.9,1.13583469]
[1740069765665,3.07413861,649.52,648.9,1.13583469]
[1740069765867,3.07413861,649.51,648.9,1.13583469]
[1740069766060,3.07413861,649.5,648.9,1.13583469]
[1740069766264,3.07413861,649.49,648.9,1.13583469]
[1740069766461,3.07413861,649.48,648.9,1.13583469]
[1740069766668,3.07413861,649.47,648.9,1.13583469]
[1740069766862,3.07413861,649.46,648.9,1.13583469]
[1740069767065,3.07413861,649.45,648.9,1.13583469]
[1740069767264,2.23250411,649.46,648.83,1.13583469]
[1740069767464,3.07402358,649.45,648.83,1.13583469]
[1740069767668,3.07390644,649.44,648.83,1.13583469]
[1740069767867,2.23250411,649.46,648.83,1.13583469]
[1740069768068,3.07394817,649.45,648.83,1.13583469]
[1740069768262,3.07394817,649.44,648.83,1.13583469]
[1740069768460,3.07378602,649.43,648.83,1.13583469]
[1740069768660,2.053,649.64,648.83,1.13583469]
[1740069768867,3.07379631,649.63,648.83,1.13583469]
[1740069769066,3.07379631,649.62,648.83,1.13583469]
[1740069769262,3.07379631,649.61,648.83,1.13583469]
[1740069769465,3.07379631,649.6,648.81,1.13583469]
[1740069769669,3.07379631,649.59,648.81,1.13583469]
[1740069769866,3.07379631,649.58,648.81,1.13583469]
[1740069770066,3.07379631,649.57,648.81,1.13583469]
[1740069770262,2.23224126,649.63,648.81,1.13583469]
[1740069770263,3.07379631,649.56,648.81,1.13583469]
[1740069770467,3.07379631,649.55,648.81,1.13583469]
[1740069770663,3.07379631,649.54,648.81,1.13583469]
[1740069770868,3.07379631,649.53,648.81,1.13583469]
[1740069771067,3.07379631,649.52,648.81,1.13583469]
[1740069771266,3.07379631,649.51,648.81,1.13583469]
[1740069771568,2.23224126,649.52,648.81,1.13583469]
[1740069771569,3.07379631,649.5,648.81,1.13583469]
[1740069771769,3.07379631,649.49,648.81,1.13583469]
[1740069771967,3.07379631,649.48,648.38,1.13583469]
[1740069772170,3.07379631,649.47,648.38,1.13583469]
[1740069772371,3.07379631,649.46,648.38,1.13583469]
[1740069772564,3.07379631,649.45,648.38,1.13583469]
[1740069772764,3.07379631,649.44,648.38,1.13583469]
[1740069772972,3.07379631,649.43,648.38,1.13583469]
[1740069773169,3.07379631,649.42,648.38,1.13583469]
[1740069773369,3.07379631,649.41,648.38,1.13583469]
[1740069773571,3.07379631,649.4,648.38,1.13583469]
[1740069773769,3.07379631,649.39,648.23,1.13583469]
[1740069773967,3.07379631,649.38,648.23,1.13583469]
[1740069774174,3.07379631,649.37,648.23,1.13583469]
[1740069774473,3.07379631,649.36,648.3,1.60706245]
[1740069774669,3.07379631,649.35,648.3,1.60706245]
[1740069774870,3.07379631,649.34,648.3,1.60706245]
[1740069775072,2.23224126,649.44,648.3,1.60706245]
[1740069775073,3.07379631,649.33,648.3,1.60706245]
[1740069775269,2.23224126,649.33,648.3,1.60706245]
[1740069776673,2.053,649.64,648.3,1.60706245]
[1740069776874,3.07067541,649.63,648.3,1.60706245]
[1740069777073,3.07067541,649.62,648.3,1.60706245]
[1740069777273,3.07067541,649.61,648.3,1.60706245]
[1740069777573,3.07067541,649.6,648.3,1.60706245]
[1740069777773,3.07067541,649.59,648.3,1.60706245]
[1740069777972,3.07067541,649.58,648.3,1.60706245]
[1740069778168,3.07067541,649.57,648.3,1.60706245]
[1740069778372,3.07067541,649.56,648.3,1.60706245]
[1740069778571,3.07067541,649.55,648.3,1.60706245]
[1740069778772,3.07067541,649.54,648.3,1.60706245]
[1740069778969,3.07067541,649.53,648.3,1.60706245]
[1740069779172,3.07067541,649.52,648.3,1.60706245]
[1740069779473,3.07067541,649.51,648.3,1.60706245]
[1740069779675,3.07067541,649.5,648.3,1.60706245]
[1740069779974,3.07067541,649.49,648.3,1.60706245]
[1740069780177,3.07067541,649.48,648.3,1.60706245]
[1740069780370,3.07067541,649.47,648.3,1.60706245]
[1740069780675,3.07067541,649.46,648.3,1.60706245]
[1740069780869,3.07067541,649.45,648.3,1.60706245]
[1740069781071,3.07067541,649.44,648.3,1.60706245]
[1740069781271,3.07067541,649.43,648.3,1.60706245]
[1740069781471,3.07067541,649.42,648.3,1.60706245]
[1740069781675,3.07067541,649.41,648.3,1.60706245]
[1740069781876,3.07067541,649.4,648.3,1.60706245]
[1740069782075,3.07067541,649.39,648.3,1.60706245]
[1740069782277,3.07067541,649.38,648.3,1.60706245]
[1740069782473,3.07067541,649.37,648.3,1.60706245]
[1740069782678,3.07067541,649.36,648.3,1.60706245]
[1740069782978,3.07067541,649.35,648.3,1.60706245]
[1740069783177,3.07067541,649.34,648.3,1.60706245]
[1740069783376,2.22996768,649.45,648.08,1.13583469]
[1740069783577,2.22996768,649.34,648.2,1.60726657]
[1740069783778,2.22996768,649.34,648.27,1.13583469]
[1740069784474,3.0677951,649.33,648.27,1.13583469]
[1740069784679,3.0677951,649.32,648.27,1.13583469]
[1740069784878,3.0677951,649.31,648.27,1.13583469]
[1740069785078,3.0677951,649.3,648.27,1.13583469]
[1740069785272,3.0677951,649.29,648.27,1.13583469]
[1740069785476,3.0677951,649.28,648.27,1.13583469]
[1740069785676,3.0677951,649.27,648.27,1.13583469]
[1740069785875,3.0677951,649.26,648.27,1.13583469]
[1740069786079,3.0677951,649.25,648.27,1.13583469]
[1740069786279,2.22996768,649.25,648.27,1.13583469]
[1740069786779,2.22996768,649.25,648.48,1.13583469]
[1740069787577,1.674,649.37,648.48,1.13583469]
[1740069787781,3.06543406,649.36,648.48,1.13583469]
[1740069787981,3.06543406,649.35,648.48,1.13583469]
[1740069788281,1.674,649.37,648.48,1.13583469]
[1740069788282,5.29184322,649.34,648.48,1.13583469]
[1740069788476,3.06543406,649.33,648.48,1.13583469]
[1740069788678,3.06543406,649.32,648.48,1.13583469]
[1740069788879,3.06543406,649.31,648.48,1.13583469]
[1740069789179,3.06543406,649.3,648.48,1.13583469]
[1740069789377,3.06543406,649.29,648.48,1.13583469]
[1740069789574,3.06543406,649.28,648.48,1.13583469]
[1740069789779,3.06543406,649.27,648.67,1.13583469]
[1740069789982,5.29184322,649.26,648.67,1.13583469]
[1740069790282,3.06543406,649.25,648.67,1.13583469]
[1740069790481,3.06543406,649.24,648.67,1.13583469]
[1740069790678,3.06543406,649.23,648.67,1.13583469]
[1740069790979,3.06543406,649.22,648.67,1.13583469]
[1740069791181,3.06543406,649.21,648.67,1.13583469]
[1740069791383,3.06543406,649.21,648.62,1.13583469]
[1740069791684,3.06543406,649.2,648.62,1.13583469]
[1740069791880,3.06543406,649.19,648.62,1.13583469]
[1740069792077,3.06543406,649.18,648.62,1.13583469]
[1740069792283,2.22640916,649.19,648.62,1.13583469]
[1740069792977,1.674,649.37,648.62,1.13583469]
[1740069793184,3.06307813,649.36,648.62,1.13583469]
[1740069793377,3.06307813,649.35,648.62,1.13583469]
[1740069793684,1.674,649.37,648.27,1.13583469]
[1740069793685,3.06307813,649.34,648.27,1.13583469]
[1740069793882,3.06307813,649.33,648.27,1.13583469]
[1740069794083,3.06307813,649.32,648.27,1.13583469]
[1740069794283,3.06307813,649.31,648.27,1.13583469]
[1740069794484,3.06307813,649.3,648.27,1.13583469]
[1740069794785,5.28782106,649.29,648.27,1.13583469]
[1740069794980,3.06307813,649.28,648.25,1.13583469]
[1740069795179,3.06307813,649.27,648.25,1.13583469]
[1740069795378,1.727,649.27,648.25,1.13583469]
[1740069795984,3.0627238,649.26,648.25,1.13583469]
[1740069796184,3.0627238,649.25,648.25,1.13583469]
[1740069796380,3.0627238,649.24,648.25,1.13583469]
[1740069796580,3.0627238,649.23,648.25,1.13583469]
[1740069796781,3.0627238,649.22,648.25,1.13583469]
[1740069796982,3.0627238,649.21,648.25,1.13583469]
[1740069797185,3.0627238,649.2,648.2,1.13583469]
[1740069797385,3.0627238,649.19,648.2,1.13583469]
[1740069797686,3.0627238,649.18,648.2,1.13583469]
[1740069797886,3.0627238,649.17,648.2,1.13583469]
[1740069798086,3.0627238,649.16,648.2,1.13583469]
[1740069798287,3.0627238,649.15,648.2,1.13583469]
[1740069798581,3.0627238,649.14,648.2,1.13583469]
[1740069798786,3.0627238,649.13,648.2,1.13583469]
[1740069798988,3.06317613,649.12,648.2,1.13583469]
[1740069799181,2.22462362,649.17,648.2,1.13583469]
[1740069799385,3.06284243,649.16,648.2,1.13583469]
[1740069799585,3.06284243,649.15,648.21,1.13583469]
[1740069799785,3.06284243,649.14,648.21,1.13583469]
[1740069799982,3.06284243,649.13,648.21,1.13583469]
[1740069800187,3.06284243,649.12,648.21,1.13583469]
[1740069800387,2.22462362,649.13,648.21,1.13583469]
[1740069800884,3.06390132,649.12,648.21,1.13583469]
[1740069801187,2.22462362,649.13,648.51,1.13583469]
[1740069801690,3.06445144,649.12,648.51,1.13583469]
[1740069801890,2.22462362,649.13,648.51,1.13583469]
[1740069802090,3.06445115,649.12,648.51,1.13583469]
[1740069802290,2.22462362,649.13,648.51,1.13583469]
[1740069802487,3.06499548,649.12,648.51,1.13583469]
[1740069802691,5.033,649.27,648.51,1.13583469]
[1740069802893,3.06499917,649.26,648.51,1.13583469]
[1740069803087,3.06499917,649.25,648.51,1.13583469]
[1740069803287,3.06499917,649.24,648.51,1.13583469]
[1740069803489,3.06499917,649.23,648.51,1.13583469]
[1740069803694,3.06499917,649.22,648.51,1.13583469]
[1740069803889,3.06499917,649.21,648.51,1.13583469]
[1740069804093,3.06499917,649.2,648.51,1.13583469]
[1740069804295,3.06499917,649.19,648.32,1.13583469]
[1740069804493,3.06499917,649.18,648.32,1.13583469]
[1740069804689,3.06499917,649.17,648.32,1.13583469]
[1740069804994,2.2261726,649.16,648.32,1.13583469]
[1740069806600,5.033,649.27,648.32,1.13583469]
[1740069806898,5.033,649.27,648.14,1.13583469]
[1740069808700,3.06627098,649.26,648.14,1.13583469]
[1740069808998,5.29333614,649.25,648.14,1.13583469]
[1740069809202,3.06627098,649.24,648.14,1.13583469]
[1740069809503,3.06627098,649.23,648.13,1.60735937]
[1740069809800,2.22706516,649.25,648.13,1.60735937]
[1740069810096,3.06690205,649.24,648.13,1.60735937]
[1740069810300,3.06690205,649.23,648.13,1.60735937]
[1740069810503,3.06690205,649.22,648.13,1.60735937]
[1740069810801,2.22706516,649.22,648.13,1.60735937]
[1740069811802,3.06849178,649.21,648.13,1.60735937]
[1740069812001,2.22706516,649.22,648.13,1.60735937]
[1740069812304,5.033,649.27,648.13,1.60735937]
[1740069812502,3.06859865,649.26,648.13,1.60735937]
[1740069812697,3.06859865,649.25,648.13,1.60735937]
[1740069812900,3.06859865,649.24,648.13,1.60735937]
[1740069813100,3.06859865,649.23,648.13,1.60735937]
[1740069813301,3.06859865,649.22,648.27,1.13583469]
[1740069813505,1.282,649.24,648.27,1.13583469]
[1740069813704,3.07017951,649.23,648.27,1.13583469]
[1740069813903,3.07017951,649.22,648.27,1.13583469]
[1740069814107,3.07017951,649.21,648.27,1.13583469]